Workbook

Sheet 2021
A1: 1 Trimestre 2021 | B1: Retribuzioni lorde (€) | C1: Contributi/IRAP (€) | D1: Totale costo personale (€)
A3: CO.CO.CO
A5: Personale in Comando
A6: DIRETTORE | B6: 10,677.63 | C6: 3,491.71 | D6: 14,169.34
A7: FUNZIONARIO | B7: 50,128.27 | C7: 17,760.43 | D7: 67,888.70
A8: OPERATIVO
A9: ESECUTIVO | B9: 2,813.54 | C9: 1,057.21 | D9: 3,870.75
A10: Totale | B10: =SUM(B6:B9) -> 63,619.44 | C10: =SUM(C6:C9) -> 22,309.35 | D10: 85,928.79
A12: Personale a tempo determinato
A13: DIRETTORE | B13: 225,543.65 | C13: 82,605.00 | D13: 308,148.65
A14: FUNZIONARIO | B14: 155,547.72 | C14: 56,899.92 | D14: 212,447.64
A15: OPERATIVO | B15: 16,420.52 | C15: 5,663.92 | D15: 22,084.44
A16: ESECUTIVO
A17: Totale | B17: =SUM(B13:B16) -> 397,511.89 | C17: =SUM(C13:C16) -> 145,168.84 | D17: 542,680.73
A19: TOTALE 1 TRIMESTRE 2021 | B19: =B10+B17 -> 461,131.33 | C19: =C10+C17 -> 167,478.19 | D19: 628,609.52
A21: 2 Trimestre 2021 | B21: Retribuzioni lorde (€) | C21: Contributi/IRAP (€) | D21: Totale costo personale (€)
A23: CO.CO.CO
A25: Personale in Comando
A26: DIRETTORE | B26: 11,590.59 | C26: 3,790.59 | D26: 15,381.18
A27: FUNZIONARIO | B27: 37,457.67 | C27: 12,211.74 | D27: 49,669.41
A28: OPERATIVO
A29: ESECUTIVO | B29: 2,136.54 | C29: 698.46 | D29: 2,835.00
A30: Totale | B30: =SUM(B26:B29) -> 51,184.80 | C30: =SUM(C26:C29) -> 16,700.79 | D30: 67,885.59
A32: Personale a tempo determinato
A33: DIRETTORE | B33: 267,994.29 | C33: 95,600.13 | D33: 363,594.42
A34: FUNZIONARIO | B34: 122,974.69 | C34: 47,345.35 | D34: 170,320.04
A35: OPERATIVO | B35: 14,859.41 | C35: 5,001.20 | D35: 19,860.61
A36: ESECUTIVO
A37: Totale | B37: =SUM(B33:B36) -> 405,828.39 | C37: =SUM(C33:C36) -> 147,946.68 | D37: 553,775.07
A39: TOTALE 2 TRIMESTRE 2021 | B39: =B30+B37 -> 457,013.19 | C39: =C30+C37 -> 164,647.47 | D39: 621,660.66
A41: 3 Trimestre 2021 | B41: Retribuzioni lorde (€) | C41: Contributi/IRAP (€) | D41: Totale costo personale (€)
A43: CO.CO.CO
A45: Personale in Comando
A46: DIRETTORE | B46: 11,590.59 | C46: 3,871.35 | D46: 15,461.94
A47: FUNZIONARIO | B47: 37,457.67 | C47: 12,553.46 | D47: 50,011.13
A48: OPERATIVO
A49: ESECUTIVO | B49: 2,798.46 | C49: 956.59 | D49: 3,755.05
A50: Totale | B50: =SUM(B46:B49) -> 51,846.72 | C50: =SUM(C46:C49) -> 17,381.40 | D50: 69,228.12
A52: Personale a tempo determinato
A53: DIRETTORE | B53: 267,994.29 | C53: 74,250.83 | D53: 342,245.12
A54: FUNZIONARIO | B54: 53,443.20 | C54: 20,762.60 | D54: 74,205.80
A55: OPERATIVO
A56: ESECUTIVO
A57: Totale | B57: =SUM(B53:B56) -> 321,437.49 | C57: =SUM(C53:C56) -> 95,013.43 | D57: 416,450.92
A59: TOTALE 3 TRIMESTRE 2021 | B59: =B50+B57 -> 373,284.21 | C59: =C50+C57 -> 112,394.83 | D59: 485,679.04
A61: 4 Trimestre 2021 | B61: Retribuzioni lorde (€) | C61: Contributi/IRAP (€) | D61: Totale costo personale (€)
A63: CO.CO.CO
A65: Personale in Comando
A66: DIRETTORE | B66: 22,508.79 | C66: 7,476.21 | D66: 29,985.00
A67: FUNZIONARIO | B67: 82,127.18 | C67: 27,796.27 | D67: 109,923.45
A68: OPERATIVO
A69: ESECUTIVO | B69: 6,038.65 | C69: 2,093.34 | D69: 8,131.99
A70: Totale | B70: =SUM(B66:B69) -> 110,674.62 | C70: =SUM(C66:C69) -> 37,365.82 | D70: 148,040.44
A72: Personale a tempo determinato
A73: DIRETTORE | B73: 418,385.55 | C73: 115,194.44 | D73: 533,579.99
A74: FUNZIONARIO | B74: 110,786.05 | C74: 34,797.80 | D74: 145,583.85
A75: OPERATIVO | B75: 12,532.92 | C75: 4,592.72 | D75: 17,125.64
A76: ESECUTIVO
A77: Totale | B77: =SUM(B73:B76) -> 541,704.52 | C77: =SUM(C73:C76) -> 154,584.96 | D77: 696,289.48
A79: TOTALE 4 TRIMESTRE 2021 | B79: =B70+B77 -> 652,379.14 | C79: =C70+C77 -> 191,950.78 | D79: 844,329.92
A81: Totale anno 2021 | B81: =B19+B39+B59+B79 -> 1,943,807.87 | C81: =C19+C39+C59+C79 -> 636,471.27 | D81: 2,580,279.14
A83: Rimborsi per pesonale comandato/fuori ruolo/ in conv. ad altre Amm. Pubb. (€) | D83: 991,181.43
A85: Acquisto di servizi da agenzie di lavoro interinale (€) | D85: 708,788.07

Sheet 2022
A1: 1 Trimestre 2022 | B1: Retribuzioni lorde (€) | C1: Contributi/IRAP (€) | D1: Totale costo personale (€)
A3: CO.CO.CO
A5: Personale in Comando
A6: DIRETTORE | B6: 15,256.58 | C6: 5,027.20 | D6: 20,283.78
A7: FUNZIONARIO | B7: 59,292.96 | C7: 20,622.81 | D7: 79,915.77
A8: OPERATIVO
A9: ESECUTIVO | B9: 5,418.03 | C9: 1,837.08 | D9: 7,255.11
A10: Totale | B10: =SUM(B6:B9) -> 79,967.57 | C10: =SUM(C6:C9) -> 27,487.09 | D10: 107,454.66
A12: Personale a tempo determinato
A13: DIRETTORE | B13: 281,464.79 | C13: 104,844.30 | D13: 386,309.09
A14: FUNZIONARIO | B14: 83,588.28 | C14: 30,560.06 | D14: 114,148.34
A15: OPERATIVO | B15: 61,785.87 | C15: 22,724.73 | D15: 84,510.60
A16: ESECUTIVO
A17: Totale | B17: =SUM(B13:B16) -> 426,838.94 | C17: =SUM(C13:C16) -> 158,129.09 | D17: 584,968.03
A19: TOTALE 1 TRIMESTRE 2022 | B19: =B10+B17 -> 506,806.51 | C19: =C10+C17 -> 185,616.18 | D19: 692,422.69
A21: 2 Trimestre 2022 | B21: Retribuzioni lorde (€) | C21: Contributi/IRAP (€) | D21: Totale costo personale (€)
A23: CO.CO.CO
A25: Personale in Comando
A26: DIRETTORE | B26: 11,669.73 | C26: 3,816.43 | D26: 15,486.16
A27: FUNZIONARIO | B27: 43,796.51 | C27: 14,242.13 | D27: 58,038.64
A28: OPERATIVO
A29: ESECUTIVO | B29: 5,333.27 | C29: 1,743.91 | D29: 7,077.18
A30: Totale | B30: =SUM(B26:B29) -> 60,799.51 | C30: =SUM(C26:C29) -> 19,802.47 | D30: 80,601.98
A32: Personale a tempo determinato
A33: DIRETTORE | B33: 284,876.59 | C33: 101,126.37 | D33: 386,002.96
A34: FUNZIONARIO | B34: 58,438.00 | C34: 22,517.16 | D34: 80,955.16
A35: OPERATIVO | B35: 81,176.66 | C35: 30,819.04 | D35: 111,995.70
A36: ESECUTIVO
A37: Totale | B37: =SUM(B33:B36) -> 424,491.25 | C37: =SUM(C33:C36) -> 154,462.57 | D37: 578,953.82
A39: TOTALE 2 TRIMESTRE 2022 | B39: =B30+B37 -> 485,290.76 | C39: =C30+C37 -> 174,265.04 | D39: 659,555.80
A41: 3 Trimestre 2022 | B41: Retribuzioni lorde (€) | C41: Contributi/IRAP (€) | D41: Totale costo personale (€)
A43: CO.CO.CO
A45: Personale in Comando
A46: DIRETTORE | B46: 10,790.49 | C46: 3,528.66 | D46: 14,319.15
A47: FUNZIONARIO | B47: 67,224.92 | C47: 21,869.38 | D47: 89,094.30
A48: OPERATIVO
A49: ESECUTIVO | B49: 918.29 | C49: 300.19 | D49: 1,218.48
A50: Totale | B50: =SUM(B46:B49) -> 78,933.70 | C50: =SUM(C46:C49) -> 25,698.23 | D50: 104,631.93
A52: Personale a tempo determinato
A53: DIRETTORE | B53: 330,824.89 | C53: 92,348.44 | D53: 423,173.33
A54: FUNZIONARIO | B54: 70,596.37 | C54: 24,028.67 | D54: 94,625.04
A55: OPERATIVO | B55: 80,607.81 | C55: 30,665.03 | D55: 111,272.84
A56: ESECUTIVO
A57: Totale | B57: =SUM(B53:B56) -> 482,029.07 | C57: =SUM(C53:C56) -> 147,042.14 | D57: 629,071.21
A59: TOTALE 3 TRIMESTRE 2022 | B59: =B50+B57 -> 560,962.77 | C59: =C50+C57 -> 172,740.37 | D59: 733,703.14
A61: 4 Trimestre 2022 | B61: Retribuzioni lorde (€) | C61: Contributi/IRAP (€) | D61: Totale costo personale (€)
A63: CO.CO.CO
A65: Personale in Comando
A66: DIRETTORE | B66: 9,629.63 | C66: 3,148.53 | D66: 12,778.16
A67: FUNZIONARIO | B67: 36,095.03 | C67: 11,725.23 | D67: 47,820.26
A68: OPERATIVO
A69: ESECUTIVO
A70: Totale | B70: =SUM(B66:B69) -> 45,724.66 | C70: =SUM(C66:C69) -> 14,873.76 | D70: 60,598.42
A72: Personale a tempo determinato
A73: DIRETTORE | B73: 406,349.21 | C73: 114,353.28 | D73: 520,702.49
A74: FUNZIONARIO | B74: 137,309.96 | C74: 35,985.64 | D74: 173,295.60
A75: OPERATIVO | B75: 121,683.85 | C75: 45,407.17 | D75: 167,091.02
A76: ESECUTIVO
A77: Totale | B77: =SUM(B73:B76) -> 665,343.02 | C77: =SUM(C73:C76) -> 195,746.09 | D77: 861,089.11
A79: TOTALE 4 TRIMESTRE 2022 | B79: =B70+B77 -> 711,067.68 | C79: =C70+C77 -> 210,619.85 | D79: 921,687.53
A81: Totale anno 2022 | B81: =B19+B39+B59+B79 -> 2,264,127.72 | C81: =C19+C39+C59+C79 -> 743,241.44 | D81: 3,007,369.16
A83: Rimborsi per pesonale comandato/fuori ruolo/ in conv. ad altre Amm. Pubb. (€)
A85: Acquisto di servizi da agenzie di lavoro interinale (€)

Sheet 2023
A1: 1 Trimestre 2023 | B1: Retribuzioni lorde (€) | C1: Contributi/IRAP (€) | D1: Totale costo personale (€)
A3: CO.CO.CO
A5: Personale in Comando
A6: DIRETTORE | B6: 9,714.09 | C6: 3,653.29 | D6: 13,367.38
A7: FUNZIONARIO | B7: 8,201.92 | C7: 2,673.20 | D7: 10,875.12
A8: OPERATIVO
A9: ESECUTIVO
A10: Totale | B10: 17,916.01 | C10: 6,326.49 | D10: 24,242.50
A12: Personale a tempo determinato
A13: DIRETTORE | B13: 285,551.79 | C13: 110,709.33 | D13: 396,261.12
A14: FUNZIONARIO | B14: 61,433.79 | C14: 24,926.35 | D14: 86,360.14
A15: OPERATIVO | B15: 84,710.98 | C15: 36,234.25 | D15: 120,945.23
A16: ESECUTIVO
A17: Totale | B17: 431,696.56 | C17: 171,869.93 | D17: 603,566.49
A19: TOTALE 1 TRIMESTRE 2023 | B19: 449,612.57 | C19: 178,196.42 | D19: 627,808.99
A21: 2 Trimestre 2023 | B21: Retribuzioni lorde (€) | C21: Contributi/IRAP (€) | D21: Totale costo personale (€)
A23: CO.CO.CO
A25: Personale in Comando
A26: DIRETTORE | B26: 10,790.49 | C26: 3,528.66 | D26: 14,319.15
A27: FUNZIONARIO | B27: 6,151.44 | C27: 2,011.05 | D27: 8,162.49
A28: OPERATIVO
A29: ESECUTIVO
A30: Totale | B30: 16,941.93 | C30: 5,539.71 | D30: 22,481.64
A32: Personale a tempo determinato
A33: DIRETTORE | B33: 285,551.79 | C33: 105,157.11 | D33: 390,708.90
A34: FUNZIONARIO | B34: 61,433.79 | C34: 24,006.07 | D34: 85,439.86
A35: OPERATIVO | B35: 83,129.59 | C35: 33,467.02 | D35: 116,596.61
A36: ESECUTIVO
A37: Totale | B37: 430,115.17 | C37: 162,630.20 | D37: 592,745.37
A39: TOTALE 2 TRIMESTRE 2023 | B39: 447,057.10 | C39: 168,169.91 | D39: 615,227.01
A41: 3 Trimestre 2023 | B41: Retribuzioni lorde (€) | C41: Contributi/IRAP (€) | D41: Totale costo personale (€)
A43: CO.CO.CO
A45: Personale in Comando
A46: DIRETTORE | B46: 11,870.49 | C46: 3,898.28 | D46: 15,768.77
A47: FUNZIONARIO | B47: 30,257.55 | C47: 10,012.47 | D47: 40,270.02
A48: OPERATIVO
A49: ESECUTIVO | B49: 3,857.67 | C49: 1,261.57 | D49: 5,119.24
A50: Totale | B50: 45,985.71 | C50: 15,172.32 | D50: 61,158.03
A52: Personale a tempo determinato
A53: DIRETTORE | B53: 359,418.51 | C53: 102,218.22 | D53: 461,636.73
A54: FUNZIONARIO | B54: 82,004.11 | C54: 26,942.51 | D54: 108,946.62
A55: OPERATIVO | B55: 103,623.15 | C55: 36,691.48 | D55: 140,314.63
A56: ESECUTIVO
A57: Totale | B57: 545,045.77 | C57: 165,852.21 | D57: 710,897.98
A59: TOTALE 3 TRIMESTRE 2023 | B59: 591,031.48 | C59: 181,024.53 | D59: 772,056.01
A61: 4 Trimestre 2023 | B61: Retribuzioni lorde (€) | C61: Contributi/IRAP (€) | D61: Totale costo personale (€)
A63: CO.CO.CO
A65: Personale in Comando
A66: DIRETTORE | B66: 9,039.16 | C66: 2,956.08 | D66: 11,995.24
A67: FUNZIONARIO | B67: 23,173.02 | C67: 7,541.77 | D67: 30,714.79
A68: OPERATIVO | B68: 2,750.01 | C68: 899.58 | D68: 3,649.59
A69: ESECUTIVO
A70: Totale | B70: 34,962.19 | C70: 11,397.43 | D70: 46,359.62
A72: Personale a tempo determinato
A73: DIRETTORE | B73: 400,378.18 | C73: 112,175.18 | D73: 512,553.36
A74: FUNZIONARIO | B74: 88,446.48 | C74: 26,634.24 | D74: 115,080.72
A75: OPERATIVO | B75: 123,741.71 | C75: 45,516.43 | D75: 169,258.14
A76: ESECUTIVO
A77: Totale | B77: 612,566.37 | C77: 184,325.85 | D77: 796,892.22
A79: TOTALE 4 TRIMESTRE 2023 | B79: 647,528.56 | C79: 195,723.28 | D79: 843,251.84
A81: Totale anno 2023 | B81: 2,135,229.71 | C81: 723,114.14 | D81: 2,858,343.85
A83: Rimborsi per pesonale comandato/fuori ruolo/ in conv. ad altre Amm. Pubb. (€) | D83: 217,014.34
A85: Acquisto di servizi da agenzie di lavoro interinale (€) | D85: -

Sheet 2024
A1: 1 Trimestre 2024 | B1: Retribuzioni lorde (€) | C1: Contributi/IRAP (€) | D1: Totale costo personale (€)
A3: CO.CO.CO
A5: Personale in Comando
A6: DIRETTORE | B6: 10,790.49 | C6: 3,509.59 | D6: 14,300.08
A7: FUNZIONARIO | B7: 23,985.09 | C7: 7,829.39 | D7: 31,814.48
A8: OPERATIVO | B8: 3,471.64 | C8: 1,135.34 | D8: 4,606.98
A9: ESECUTIVO
A10: Totale | B10: 38,247.22 | C10: 12,474.32 | D10: 50,721.54
A12: Personale a tempo determinato
A13: DIRETTORE | B13: 346,034.20 | C13: 138,507.54 | D13: 484,541.74
A14: FUNZIONARIO | B14: 84,190.43 | C14: 34,286.19 | D14: 118,476.62
A15: OPERATIVO | B15: 120,369.07 | C15: 50,269.23 | D15: 170,638.30
A16: ESECUTIVO
A17: Totale | B17: 550,593.70 | C17: 223,062.96 | D17: 773,656.66
A19: TOTALE 1 TRIMESTRE 2024 | B19: 588,840.92 | C19: 235,537.28 | D19: 824,378.20
A21: 2 Trimestre 2024 | B21: Retribuzioni lorde (€) | C21: Contributi/IRAP (€) | D21: Totale costo personale (€)
A23: CO.CO.CO
A25: Personale in Comando
A26: DIRETTORE | B26: 13,044.82 | C26: 4,251.93 | D26: 17,296.75
A27: FUNZIONARIO | B27: 31,810.94 | C27: 10,387.66 | D27: 42,198.60
A28: OPERATIVO | B28: 8,322.27 | C28: 2,702.05 | D28: 11,024.32
A29: ESECUTIVO
A30: Totale | B30: 53,178.03 | C30: 17,341.64 | D30: 70,519.67
A32: Personale a tempo determinato
A33: DIRETTORE | B33: 355,928.58 | C33: 125,120.44 | D33: 481,049.02
A34: FUNZIONARIO | B34: 79,074.96 | C34: 25,173.71 | D34: 104,248.67
A35: OPERATIVO | B35: 111,467.57 | C35: 39,549.81 | D35: 151,017.38
A36: ESECUTIVO
A37: Totale | B37: 546,471.11 | C37: 189,843.96 | D37: 736,315.07
A39: TOTALE 2 TRIMESTRE 2024 | B39: 599,649.14 | C39: 207,185.60 | D39: 806,834.74
A41: 3 Trimestre 2024 | B41: Retribuzioni lorde (€) | C41: Contributi/IRAP (€) | D41: Totale costo personale (€)
A43: CO.CO.CO
A45: Personale in Comando
A46: DIRETTORE | B46: 6,621.48 | C46: 2,168.95 | D46: 8,790.43
A47: FUNZIONARIO | B47: 34,888.71 | C47: 10,091.61 | D47: 44,980.32
A48: OPERATIVO | B48: 10,831.91 | C48: 3,511.39 | D48: 14,343.30
A49: ESECUTIVO
A50: Totale | B50: 52,342.10 | C50: 15,771.95 | D50: 68,114.05
A52: Personale a tempo determinato
A53: DIRETTORE | B53: 309,362.40 | C53: 89,685.33 | D53: 399,047.73
A54: FUNZIONARIO | B54: 51,854.46 | C54: 20,126.97 | D54: 71,981.43
A55: OPERATIVO | B55: 95,204.75 | C55: 36,986.76 | D55: 132,191.51
A56: ESECUTIVO
A57: Totale | B57: 456,421.61 | C57: 146,799.06 | D57: 603,220.67
A59: TOTALE 3 TRIMESTRE 2024 | B59: 508,763.71 | C59: 162,571.01 | D59: 671,334.72
A61: 4 Trimestre 2024 | B61: Retribuzioni lorde (€) | C61: Contributi/IRAP (€) | D61: Totale costo personale (€)
A63: CO.CO.CO
A65: Personale in Comando
A66: DIRETTORE | B66: 16,567.23 | C66: 5,417.74 | D66: 21,984.97
A67: FUNZIONARIO | B67: 31,823.03 | C67: 10,201.57 | D67: 42,024.60
A68: OPERATIVO | B68: 10,826.86 | C68: 3,510.19 | D68: 14,337.05
A69: ESECUTIVO
A70: Totale | B70: 59,217.12 | C70: 19,129.50 | D70: 78,346.62
A72: Personale a tempo determinato
A73: DIRETTORE | B73: 456,392.63 | C73: 167,541.86 | D73: 623,934.49
A74: FUNZIONARIO | B74: 72,949.74 | C74: 16,094.20 | D74: 89,043.94
A75: OPERATIVO | B75: 135,910.14 | C75: 49,221.46 | D75: 185,131.60
A76: ESECUTIVO
A77: Totale | B77: 665,252.51 | C77: 232,857.52 | D77: 898,110.03
A79: TOTALE 4 TRIMESTRE 2024 | B79: 724,469.63 | C79: 251,987.02 | D79: 976,456.65
A81: Totale anno 2024 | B81: 2,421,723.40 | C81: 857,280.91 | D81: 3,279,004.31
A83: Rimborsi per pesonale comandato/fuori ruolo/ in conv. ad altre Amm. Pubb. (€)
A85: Acquisto di servizi da agenzie di lavoro interinale (€)

Sheet 2025
A2: 1 Trimestre 2025 | B2: Retribuzioni lorde (€) | C2: Contributi/IRAP (€) | D2: Totale costo personale (€)
A4: CO.CO.CO
A6: Personale in Comando
A7: DIRETTORE | B7: 11,263.06 | C7: 3,716.81 | D7: 14,979.87
A8: FUNZIONARIO | B8: 26,360.89 | C8: 8,699.09 | D8: 35,059.98
A9: OPERATIVO | B9: 13,150.02 | C9: 4,339.51 | D9: 17,489.53
A10: ESECUTIVO | B10: 0 | C10: - | D10: -
A11: Totale | B11: 50,773.97 | C11: 16,755.41 | D11: 67,529.38
A13: Personale a tempo determinato
A14: DIRETTORE | B14: 311,968.81 | C14: 102,949.71 | D14: 414,918.52
A15: FUNZIONARIO | B15: 52,724.95 | C15: 17,399.23 | D15: 70,124.18
A16: OPERATIVO | B16: 98,596.08 | C16: 32,536.71 | D16: 131,132.79
A17: ESECUTIVO | B17: - | C17: - | D17: 0
A18: Totale | B18: 463,289.84 | C18: 152,885.65 | D18: 616,175.49
A20: TOTALE 1 TRIMESTRE 2025 | B20: 514,063.81 | C20: 169,641.06 | D20: 683,704.87
A22: 2 Trimestre 2025 | B22: Retribuzioni lorde (€) | C22: Contributi/IRAP (€) | D22: Totale costo personale (€)
A24: CO.CO.CO
A26: Personale in Comando
A27: DIRETTORE | B27: 10,199.80 | C27: 3,365.93 | D27: 13,565.73
A28: FUNZIONARIO | B28: 23,872.36 | C28: 7,877.88 | D28: 31,750.23
A29: OPERATIVO | B29: 11,908.63 | C29: 3,929.85 | D29: 15,838.47
A30: ESECUTIVO | B30: 0 | C30: - | D30: 0
A31: Totale | B31: 45,980.78 | C31: 15,173.66 | D31: 61,154.44
A33: Personale a tempo determinato
A34: DIRETTORE | B34: 267,969.30 | C34: 88,429.87 | D34: 356,399.17
A35: FUNZIONARIO | B35: 54,768.90 | C35: 18,073.74 | D35: 72,842.64
A36: OPERATIVO | B36: 102,418.28 | C36: 33,798.03 | D36: 136,216.32
A37: ESECUTIVO | D37: 0
A38: Totale | B38: 425,156.48 | C38: 140,301.64 | D38: 565,458.12
A40: TOTALE 2 TRIMESTRE 2025 | B40: 471,137.26 | C40: 155,475.30 | D40: 626,612.56
A42: 3 Trimestre 2025 | B42: Retribuzioni lorde (€) | C42: Contributi/IRAP (€) | D42: Totale costo personale (€)
A44: CO.CO.CO
A46: Personale in Comando
A47: DIRETTORE | B47: 10,436.67 | C47: 3,444.10 | D47: 13,880.77
A48: FUNZIONARIO | B48: 24,426.75 | C48: 8,060.83 | D48: 32,487.58
A49: OPERATIVO | B49: 12,185.18 | C49: 4,021.11 | D49: 16,206.29
A50: ESECUTIVO
A51: Totale | B51: 47,048.60 | C51: 15,526.04 | D51: 62,574.64
A53: Personale a tempo determinato
A54: DIRETTORE | B54: 269,705.27 | C54: 89,002.74 | D54: 358,708.01
A55: FUNZIONARIO | B55: 49,990.95 | C55: 16,497.01 | D55: 66,487.96
A56: OPERATIVO | B56: 93,483.48 | C56: 30,849.55 | D56: 124,333.03
A57: ESECUTIVO
A58: Totale | B58: 413,179.70 | C58: 136,349.30 | D58: 549,529.00
A60: TOTALE 3 TRIMESTRE 2025 | B60: 460,228.30 | C60: 151,875.34 | D60: 612,103.64
A62: 4 Trimestre 2025 | B62: Retribuzioni lorde (€) | C62: Contributi/IRAP (€) | D62: Totale costo personale (€)
A64: CO.CO.CO
A66: Personale in Comando
A67: DIRETTORE
A68: FUNZIONARIO
A69: OPERATIVO
A70: ESECUTIVO
A71: Totale | B71: 0 | C71: 0 | D71: 0
A73: Personale a tempo determinato
A74: DIRETTORE
A75: FUNZIONARIO
A76: OPERATIVO
A77: ESECUTIVO
A78: Totale | B78: 0 | C78: 0 | D78: 0
A80: TOTALE 4 TRIMESTRE 2025 | B80: 0 | C80: 0 | D80: 0
A82: Totale anno 2025 | B82: 1,445,429.37 | C82: 476,991.69 | D82: 1,922,421.06
A84: Rimborsi per pesonale comandato/fuori ruolo/ in conv. ad altre Amm. Pubb. (€) | D84: 90,352.98
